fUST/lending_fUST_20250821
["ID","MTS","AMOUNT","RATE_DAILY","PERIOD"]
[380449968,1755775841566,-480.0,0.00021917,2]
[380449969,1755775841575,-480.0,0.00021917,3]
[380449970,1755775841584,-385.72276696,0.00021917,3]
[380449971,1755775841593,-480.0,0.00021917,3]
[380449972,1755775841602,-394.77241208,0.00021917,3]
[380449973,1755775841610,-480.0,0.00021917,3]
[380449974,1755775841620,-480.0,0.00021917,3]
[380449975,1755775841632,-1092.19,0.00021917,3]
[380449976,1755775841641,-480.0,0.00021917,3]
[380449977,1755775841650,-480.0,0.00021917,3]
[380449978,1755775841658,-480.0,0.00021917,3]
[380449979,1755775841669,-444.25835682,0.00021917,3]
[380449980,1755775841678,-480.0,0.00021917,3]
[380449981,1755775841687,-480.0,0.00021917,3]
[380449982,1755775841696,-480.0,0.00021917,3]
[380449983,1755775841704,-480.0,0.00021917,3]
[380449984,1755775841715,-480.0,0.00021917,3]
[380449985,1755775841724,-697.95,0.00021917,3]
[380449986,1755775841733,-480.0,0.00021917,3]
[380449987,1755775841742,-917.38,0.00021917,3]
[380449988,1755775841751,-1000.0,0.00021917,3]
[380449989,1755775841760,-480.0,0.00021917,3]
[380449990,1755775841770,-481.25056445,0.00021917,3]
[380449991,1755775841779,-151.0,0.00021917,2]
[380449992,1755775841787,-151.0,0.00021917,2]
[380449993,1755775841796,-480.0,0.00021917,3]
[380449994,1755775841805,-480.0,0.00021917,3]
[380449995,1755775841814,-480.0,0.00021917,3]
[380449996,1755775841823,-580.93,0.00021917,3]
[380449997,1755775841832,-279.30521901,0.00021917,3]
[380449998,1755775841841,-485.69654343,0.00021917,3]
[380449999,1755775841851,-480.0,0.00021917,3]
[380450000,1755775841859,-594.92,0.00021917,3]
[380450001,1755775841868,-480.0,0.00021917,3]
[380450002,1755775841877,-480.0,0.00021917,3]
[380450003,1755775841886,-480.0,0.00021917,3]
[380450004,1755775841896,-535.44,0.00021917,3]
[380450005,1755775841906,-480.0,0.00021917,3]
[380450006,1755775841915,-480.0,0.00021917,3]
[380450007,1755775841925,-278.71802117,0.00021917,3]
[380450008,1755775841934,-480.0,0.00021917,3]
[380450009,1755775841944,-919.69,0.00021917,3]
[380450010,1755775841953,-480.0,0.00021917,3]
[380450011,1755775841963,-480.0,0.00021917,3]
[380450012,1755775841974,-587.45,0.00021917,3]
[380450013,1755775841983,-813.5,0.00021917,3]
[380450014,1755775841992,-480.0,0.00021917,3]
[380450015,1755775842002,-480.0,0.00021917,3]
[380450016,1755775842011,-480.0,0.00021917,3]
[380450017,1755775842020,-521.72,0.00021917,3]
[380450018,1755775842029,-986.56,0.00021917,3]
[380450019,1755775842038,-283.24388,0.00021917,2]
[380450020,1755775842047,-360.44908986,0.00021917,3]
[380450021,1755775842056,-480.0,0.00021917,3]
[380450022,1755775842065,-460.0,0.00021917,3]
[380450023,1755775842074,-486.08254926,0.00021917,3]
[380450024,1755775842083,-400.0,0.00021917,3]
[380450025,1755775842093,-2824.35,0.00021917,3]
[380450026,1755775842101,-480.0,0.00021917,3]
[380450027,1755775842110,-1030.76,0.00021917,3]
[380450028,1755775842119,-480.0,0.00021917,3]
[380450029,1755775842128,-480.0,0.00021917,3]
[380450030,1755775842137,-480.0,0.00021917,3]
[380450031,1755775842146,-480.0,0.00021917,3]
[380450032,1755775842155,-500.0,0.00021917,3]
[380450033,1755775842163,-481.69646888,0.00021917,3]
[380450034,1755775842172,-480.0,0.00021917,3]
[380450035,1755775842182,-480.0,0.00021917,3]
[380450036,1755775842190,-480.0,0.00021917,3]
[380450037,1755775842199,-480.0,0.00021917,3]
[380450038,1755775842208,-480.0,0.00021917,3]
[380450039,1755775842217,-847.84,0.00021917,3]
[380450040,1755775842226,-480.0,0.00021917,3]
[380450041,1755775842236,-480.0,0.00021917,3]
[380450042,1755775842245,-480.0,0.00021917,3]
[380450043,1755775842255,-480.0,0.00021917,3]
[380450044,1755775842265,-480.0,0.00021917,3]
[380450045,1755775842275,-480.0,0.00021917,3]
[380450046,1755775842285,-1042.11,0.00021917,3]
[380450047,1755775842295,-480.0,0.00021917,3]
[380450048,1755775842305,-480.0,0.00021917,3]
[380450049,1755775842314,-480.0,0.00021917,3]
[380450050,1755775842324,-480.0,0.00021917,3]
[380450051,1755775842334,-480.0,0.00021917,3]
[380450052,1755775842343,-480.0,0.00021917,3]
[380450053,1755775842353,-410.05976983,0.00021917,3]
[380450054,1755775842362,-480.0,0.00021917,3]
[380450055,1755775842372,-480.0,0.00021917,3]
[380450056,1755775842382,-1355.16,0.00021917,3]
[380450057,1755775842391,-480.0,0.00021917,3]
[380450058,1755775842400,-422.24627269,0.00021917,3]
[380450059,1755775842410,-480.0,0.00021917,3]
[380450060,1755775842419,-480.0,0.00021917,3]
[380450061,1755775842428,-480.0,0.00021917,3]
[380450062,1755775842437,-1371.89,0.00021917,3]
[380450063,1755775842446,-480.0,0.00021917,3]
[380450064,1755775842456,-480.0,0.00021917,3]
[380450065,1755775842465,-480.0,0.00021917,3]
[380450066,1755775842474,-423.31583226,0.00021917,3]
[380450067,1755775842484,-546.96,0.00021917,3]
[380450068,1755775842493,-1222.1,0.00021917,3]
[380450069,1755775842503,-480.0,0.00021917,3]
[380450070,1755775842512,-480.0,0.00021917,3]
[380450071,1755775842522,-480.0,0.00021917,3]
[380450072,1755775842531,-480.0,0.00021917,3]
[380450073,1755775842540,-420.50410852,0.00021917,3]
[380450074,1755775842549,-480.0,0.00021917,3]
[380450075,1755775842559,-480.0,0.00021917,3]
[380450076,1755775842568,-1011.65,0.00021917,3]
[380450077,1755775842578,-480.0,0.00021917,3]
[380450078,1755775842587,-480.0,0.00021917,3]
[380450079,1755775842596,-480.0,0.00021917,3]
[380450080,1755775842606,-480.0,0.00021917,3]
[380450081,1755775842616,-480.0,0.00021917,3]
[380450082,1755775842628,-480.0,0.00021917,3]
[380450083,1755775842638,-480.0,0.00021917,3]
[380450084,1755775842648,-2038.71,0.00021917,3]
[380450085,1755775842659,-480.0,0.00021917,3]
[380450086,1755775842670,-480.0,0.00021917,3]
[380450087,1755775842679,-480.0,0.00021917,3]
[380450088,1755775842689,-408.87812576,0.00021917,3]
[380450090,1755775842698,-310.90002796,0.00021917,3]
[380450091,1755775842707,-2702.8,0.00021917,3]
[380450093,1755775842716,-1465.58,0.00021917,3]
[380450094,1755775842725,-1340.53,0.00021917,3]
[380450095,1755775842734,-480.0,0.00021917,3]
[380450096,1755775842743,-480.0,0.00021917,3]
[380450097,1755775842752,-480.0,0.00021917,3]
[380450098,1755775842761,-480.0,0.00021917,3]
[380450099,1755775842771,-558.3,0.00021917,3]
[380450100,1755775842780,-480.0,0.00021917,3]
[380450102,1755775842790,-480.0,0.00021917,3]
[380450104,1755775842800,-480.0,0.00021917,3]
[380450106,1755775842809,-480.0,0.00021917,3]
[380450107,1755775842818,-480.0,0.00021917,3]
[380450108,1755775842828,-480.0,0.00021917,3]
[380450109,1755775842837,-480.0,0.00021917,3]
[380450110,1755775842847,-480.0,0.00021917,3]
[380450111,1755775842857,-480.0,0.00021917,3]
[380450112,1755775842867,-480.0,0.00021917,3]
[380450113,1755775842877,-480.0,0.00021917,3]
[380450114,1755775842886,-480.0,0.00021917,3]
[380450115,1755775842896,-480.0,0.00021917,3]
[380450116,1755775842906,-820.82,0.00021917,3]
[380450117,1755775842915,-1566.91,0.00021917,3]
[380450118,1755775842924,-480.0,0.00021917,3]
[380450119,1755775842933,-487.66643677,0.00021917,3]
[380450120,1755775842942,-480.0,0.00021917,3]
[380450121,1755775842951,-628.41,0.00021917,3]
[380450122,1755775842961,-480.0,0.00021917,3]
[380450123,1755775842970,-480.0,0.00021917,3]
[380450124,1755775842979,-533.61,0.00021917,3]
[380450125,1755775842989,-480.0,0.00021917,3]
[380450126,1755775842998,-480.0,0.00021917,3]
[380450127,1755775843007,-480.0,0.00021917,3]
[380450128,1755775843016,-480.0,0.00021917,3]
[380450129,1755775843025,-4404.31,0.00021917,3]
[380450130,1755775843034,-480.0,0.00021917,3]
[380450131,1755775843043,-480.0,0.00021917,3]
[380450132,1755775843052,-480.0,0.00021917,3]
[380450133,1755775843061,-574.5658598,0.00021917,3]
[380450134,1755775843070,-480.0,0.00021917,3]
[380450135,1755775843080,-480.0,0.00021917,3]
[380450136,1755775843090,-579.2,0.00021917,3]
[380450137,1755775843100,-480.0,0.00021917,3]
[380450138,1755775843110,-480.0,0.00021917,3]
[380450139,1755775843119,-480.0,0.00021917,3]
[380450140,1755775843128,-480.0,0.00021917,3]
[380450141,1755775843138,-480.0,0.00021917,3]
[380450142,1755775843147,-154.21553471,0.00021917,3]
[380450158,1755775843928,-24.04534414,0.00021917,3]
[380450245,1755775846252,-301.73912115,0.00021917,3]
[380450246,1755775846262,-61.66971005,0.00021917,3]
[380450247,1755775846466,-268.38624361,0.00021917,3]
[380450280,1755776947151,-439.41319113,0.000199,2]
[380450344,1755777036031,-19.48004933,0.000199,2]
[380450345,1755777036046,-173.042823,0.00020515,2]
[380450347,1755777036058,-458.89324034,0.00020835,2]
[380450349,1755777036068,-376.00439007,0.00021134,2]
[380450350,1755777036078,-1854.63380227,0.00021291,2]
[380450351,1755777036088,-300.0,0.00021301,2]
[380450352,1755777036098,-1200.0,0.00021302,2]
[380450353,1755777036107,-300.0,0.00021302,2]
[380450354,1755777036117,-300.0,0.00021302,2]
[380450355,1755777036127,-300.0,0.00021302,2]
[380450356,1755777036137,-1200.0,0.00021302,2]
[380450358,1755777036146,-300.0,0.00021302,2]
[380450360,1755777036155,-1003.02418578,0.00021303,2]
[380450361,1755777036165,-50000.0,0.00021303,2]
[380450362,1755777036174,-293.9988399,0.00021304,2]
[380450364,1755777036183,-308.0481722,0.00021304,2]
[380450366,1755777036192,-153.0,0.00021304,2]
[380450368,1755777036202,-293.9988399,0.00021304,2]
[380450370,1755777036211,-153.0,0.00021304,2]
[380450372,1755777036220,-293.6852805,0.00021304,2]
[380450374,1755777036230,-238.1334199,0.00021304,2]
[380450376,1755777036239,-288.06,0.000215,10]
[380450378,1755777036249,-240.05,0.000215,10]
[380450380,1755777036259,-200.05,0.000215,10]
[380450381,1755777036269,-1000.0,0.00021504,2]
[380450382,1755777036278,-1000.0,0.00021504,2]
[380450383,1755777036287,-1037.37863873,0.00021504,2]
[380450384,1755777036296,-151.0,0.00021504,2]
[380450385,1755777036306,-151.0,0.00021504,2]
[380450386,1755777036315,-17842.522448,0.00021504,2]
[380450387,1755777036324,-300.0,0.00021504,2]
[380450388,1755777036333,-300.0,0.00021504,2]
[380450389,1755777036342,-302.64365837,0.00021504,2]
[380450390,1755777036351,-151.0,0.00021504,2]
[380450391,1755777036361,-151.0,0.00021504,2]
[380450393,1755777036370,-151.0,0.00021504,2]
[380450395,1755777036381,-151.0,0.00021504,2]
[380450396,1755777036391,-151.0,0.00021504,2]
[380450397,1755777036400,-151.0,0.00021504,2]
[380450399,1755777036411,-151.0,0.00021504,2]
[380450400,1755777036420,-151.0,0.00021504,2]
[380450401,1755777036431,-151.0,0.00021504,2]
[380450402,1755777036440,-184.96759136,0.00021504,2]
[380450404,1755777036449,-160.0,0.00021509,2]
[380450405,1755777036458,-422.33938017,0.00021509,2]
[380450406,1755777036467,-500.0,0.00021509,2]
[380450407,1755777036476,-500.0,0.00021509,2]
[380450408,1755777036486,-500.0,0.00021509,2]
[380450409,1755777036495,-500.0,0.00021509,2]
[380450410,1755777036505,-500.0,0.00021509,2]
[380450411,1755777036516,-500.0,0.00021509,2]
[380450412,1755777036526,-522.62219513,0.00021509,2]
[380450413,1755777036537,-500.0,0.00021509,2]
[380450414,1755777036548,-500.0,0.00021509,2]
[380450415,1755777036562,-500.0,0.00021509,2]
[380450416,1755777036575,-500.0,0.00021509,2]
[380450417,1755777036584,-500.0,0.00021509,2]
[380450418,1755777036594,-500.0,0.00021509,2]
[380450419,1755777036603,-500.0,0.00021509,2]
[380450420,1755777036613,-500.0,0.00021509,2]
[380450421,1755777036622,-844.19128999,0.00021513,2]
[380450422,1755777036632,-216.95272161,0.00021514,2]
[380450423,1755777036641,-215.86710461,0.00021514,2]
[380450424,1755777036651,-500.0,0.00021514,2]
[380450425,1755777036660,-232.28399145,0.00021514,2]
[380450426,1755777036670,-500.0,0.00021516,2]
[380450427,1755777036679,-1117.64794576,0.00021517,2]
[380450428,1755777036688,-194627.53381566,0.00021517,2]
[380450429,1755777036700,-3546.35746467,0.00021517,2]
[380450430,1755777036710,-3613.00863061,0.00021543,2]
[380450431,1755777036719,-973.0,0.00021767,2]
[380450432,1755777036729,-637.0,0.00021767,2]
[380450433,1755777036738,-2154.0,0.00021767,2]
[380450434,1755777036747,-458.89324034,0.00021771,2]
[380450435,1755777036757,-500.0,0.0002179,2]
[380450436,1755777036766,-1000.0,0.00021817,2]
[380450437,1755777036774,-298.82515166,0.00021817,3]
[380450438,1755777036784,-1304.42520905,0.00021817,2]
[380450439,1755777036794,-1500.0,0.00021844,2]
[380450440,1755777036803,-172.431,0.00021854,2]
[380450441,1755777036813,-2159.426,0.00021854,2]
[380450442,1755777036822,-367.52947147,0.00021855,2]
[380450443,1755777036831,-1000.0,0.00021876,2]
[380450444,1755777036841,-200.0,0.000219,3]
[380450445,1755777036850,-323.0,0.000219,2]
[380450446,1755777036859,-503.05642612,0.00021917,2]
[380450447,1755777036870,-300.0,0.00021917,3]
[380450448,1755777036879,-398.32930879,0.00021917,3]
[380450449,1755777036888,-355.48758265,0.00021917,3]
[380450450,1755777036898,-480.0,0.00021917,3]
[380450451,1755777036907,-480.0,0.00021917,3]
[380450452,1755777036917,-329.33654808,0.00021917,3]
[380450453,1755777036926,-480.0,0.00021917,3]
[380450454,1755777036936,-480.0,0.00021917,3]
[380450455,1755777036946,-480.0,0.00021917,3]
[380450456,1755777036955,-480.0,0.00021917,3]
[380450457,1755777036964,-480.0,0.00021917,3]
[380450458,1755777036974,-166.75062327,0.00021917,3]
[380450459,1755777036983,-480.0,0.00021917,3]
[380450460,1755777036996,-480.0,0.00021917,3]
[380450461,1755777037006,-480.0,0.00021917,3]
[380450462,1755777037015,-480.0,0.00021917,3]
[380450463,1755777037023,-421.67362539,0.00021917,3]
[380450464,1755777037033,-899.15,0.00021917,3]
[380450465,1755777037042,-480.0,0.00021917,3]
[380450466,1755777037052,-480.0,0.00021917,3]
[380450467,1755777037061,-480.0,0.00021917,3]
[380450468,1755777037072,-480.0,0.00021917,3]
[380450469,1755777037083,-480.0,0.00021917,3]
[380450470,1755777037093,-460.0,0.00021917,3]
[380450471,1755777037102,-480.0,0.00021917,3]
[380450472,1755777037111,-480.0,0.00021917,3]
[380450473,1755777037122,-480.0,0.00021917,3]
[380450474,1755777037131,-480.0,0.00021917,3]
[380450475,1755777037141,-480.0,0.00021917,3]
[380450476,1755777037150,-480.0,0.00021917,3]
[380450477,1755777037159,-481.33996938,0.00021917,3]
[380450478,1755777037169,-622.22,0.00021917,3]
[380450479,1755777037179,-480.0,0.00021917,3]
[380450480,1755777037188,-480.0,0.00021917,3]
[380450481,1755777037198,-607.52737369,0.00021917,3]
[380450482,1755777037208,-480.0,0.00021917,3]
[380450483,1755777037218,-480.0,0.00021917,3]
[380450484,1755777037228,-480.0,0.00021917,3]
[380450485,1755777037241,-480.0,0.00021917,3]
[380450486,1755777037258,-480.0,0.00021917,3]
[380450487,1755777037275,-519.98,0.00021917,3]
[380450488,1755777037285,-482.29603929,0.00021917,3]
[380450489,1755777037294,-480.0,0.00021917,3]
[380450490,1755777037304,-262.08639041,0.00021917,3]
[380450491,1755777037313,-480.0,0.00021917,3]
[380450492,1755777037322,-500.0,0.00021917,3]
[380450493,1755777037331,-500.0,0.00021917,3]
[380450494,1755777037340,-500.0,0.00021917,3]
[380450495,1755777037349,-613.83298754,0.00021917,3]
[380450496,1755777037358,-500.0,0.00021917,3]
[380450497,1755777037368,-480.0,0.00021917,3]
[380450498,1755777037379,-500.0,0.00021917,3]
[380450499,1755777037389,-500.0,0.00021917,3]
[380450500,1755777037398,-500.0,0.00021917,3]
[380450501,1755777037408,-500.0,0.00021917,3]
[380450502,1755777037417,-500.0,0.00021917,3]
[380450503,1755777037427,-480.0,0.00021917,3]
[380450504,1755777037436,-555.04,0.00021917,3]
[380450505,1755777037445,-94.07891581,0.00021917,3]
[380450506,1755777037460,-385.92108419,0.00021917,3]
[380450507,1755777037470,-386.17780929,0.00021917,3]
[380450508,1755777037482,-93.82219071,0.00021917,3]
[380450509,1755777037491,-480.0,0.00021917,3]
[380450510,1755777037501,-480.0,0.00021917,3]
[380450511,1755777037510,-480.0,0.00021917,3]
[380450512,1755777037519,-480.0,0.00021917,3]
[380450513,1755777037528,-480.0,0.00021917,3]
[380450514,1755777037537,-480.0,0.00021917,3]
[380450515,1755777037546,-620.0,0.00021917,3]
[380450516,1755777037555,-480.0,0.00021917,3]
[380450517,1755777037565,-480.0,0.00021917,3]
[380450518,1755777037575,-786.62,0.00021917,3]
[380450519,1755777037584,-480.0,0.00021917,3]
[380450520,1755777037595,-480.0,0.00021917,3]
[380450521,1755777037604,-480.0,0.00021917,3]
[380450522,1755777037614,-480.0,0.00021917,2]
[380450523,1755777037624,-440.49371734,0.00021917,3]
[380450524,1755777037634,-480.0,0.00021917,3]
[380450525,1755777037643,-254.18910015,0.00021917,3]
[380450526,1755777037652,-30.24197097,0.00021917,3]
[380450527,1755777037708,-500.0,0.00021509,2]
[380450528,1755777037718,-193.31997,0.00021509,2]
[380450551,1755777038502,-306.68003,0.00021509,2]
[380450552,1755777038512,-500.0,0.00021509,2]
[380450553,1755777038522,-145.61472369,0.00021509,2]
[380450554,1755777038537,-281.79161708,0.00021509,2]
[380450555,1755777038549,-72.59365923,0.00021509,2]
[380450556,1755777038559,-500.0,0.00021509,2]
[380450557,1755777038569,-500.0,0.00021509,2]
[380450558,1755777038578,-455.9819666,0.00021509,2]
[380450559,1755777038587,-439.75437417,0.00021509,2]
[380450560,1755777038603,-60.24562583,0.00021509,2]
[380450561,1755777038612,-500.0,0.00021509,2]
[380450562,1755777038623,-500.0,0.00021509,2]
[380450563,1755777038632,-459.56239374,0.00021509,2]
[380450564,1755777038641,-500.0,0.00021509,2]
[380450565,1755777038651,-533.84893767,0.00021509,2]
[380450566,1755777038660,-500.0,0.00021509,2]
[380450567,1755777038670,-500.0,0.00021509,2]
[380450569,1755777038679,-500.0,0.00021509,2]
[380450571,1755777038688,-500.0,0.00021509,2]
[380450572,1755777038697,-500.0,0.00021509,2]
[380450573,1755777038707,-500.0,0.00021509,2]
[380450575,1755777038718,-500.0,0.00021509,2]
[380450576,1755777038728,-500.0,0.00021509,2]
[380450577,1755777038738,-500.0,0.00021509,2]
[380450578,1755777038748,-285.28852154,0.00021509,2]
[380450579,1755777038757,-626.6968982,0.00021509,2]
[380450580,1755777038767,-500.0,0.00021509,2]
[380450581,1755777038778,-500.0,0.00021509,2]
[380450583,1755777038788,-500.0,0.00021509,2]
[380450585,1755777038798,-500.0,0.00021509,2]
[380450587,1755777038808,-500.0,0.00021509,2]
[380450589,1755777038819,-438.08591111,0.00021509,2]
[380450592,1755777038831,-61.91408889,0.00021509,2]
[380450593,1755777038840,-500.0,0.00021509,2]
[380450595,1755777038851,-500.0,0.00021509,2]
[380450597,1755777038860,-443.82343896,0.00021509,2]
[380450599,1755777038870,-500.0,0.00021509,2]
[380450601,1755777038880,-500.0,0.00021509,2]
[380450603,1755777038890,-500.0,0.00021509,2]
[380450605,1755777038899,-500.0,0.00021509,2]
[380450607,1755777038908,-500.0,0.00021509,2]
[380450609,1755777038918,-500.0,0.00021509,2]
[380450611,1755777038927,-500.0,0.00021509,2]
[380450613,1755777038936,-500.0,0.00021509,2]
[380450615,1755777038946,-500.0,0.00021509,2]
[380450617,1755777038955,-500.0,0.00021509,2]
[380450619,1755777038964,-478.31630825,0.00021509,2]
[380450621,1755777038973,-500.0,0.00021509,2]
[380450623,1755777038982,-500.0,0.00021509,2]
[380450625,1755777038995,-500.0,0.00021509,2]
[380450627,1755777039004,-500.0,0.00021509,2]
[380450629,1755777039013,-500.0,0.00021509,2]
[380450631,1755777039022,-500.0,0.00021509,2]
[380450633,1755777039031,-500.0,0.00021509,2]
[380450635,1755777039041,-500.0,0.00021509,2]
[380450637,1755777039050,-500.0,0.00021509,2]
[380450639,1755777039059,-500.0,0.00021509,2]
[380450641,1755777039068,-500.0,0.00021509,2]
[380450643,1755777039079,-500.0,0.00021509,2]
[380450645,1755777039088,-500.0,0.00021509,2]
[380450647,1755777039097,-500.0,0.00021509,2]
[380450649,1755777039106,-500.0,0.00021509,2]
[380450650,1755777039115,-500.0,0.00021509,2]
[380450652,1755777039124,-500.0,0.00021509,2]
[380450654,1755777039133,-500.0,0.00021509,2]
[380450656,1755777039142,-500.0,0.00021509,2]
[380450658,1755777039151,-500.0,0.00021509,2]
[380450660,1755777039160,-500.0,0.00021509,2]
[380450662,1755777039170,-500.0,0.00021509,2]
[380450664,1755777039179,-500.0,0.00021509,2]
[380450666,1755777039188,-500.0,0.00021509,2]
[380450668,1755777039199,-500.0,0.00021509,2]
[380450670,1755777039209,-500.0,0.00021509,2]
[380450672,1755777039218,-500.0,0.00021509,2]
[380450674,1755777039227,-449.75802903,0.00021917,3]
[380450676,1755777039237,-480.0,0.00021917,3]
[380450678,1755777039246,-1501.62,0.00021917,3]
[380450680,1755777039255,-480.0,0.00021917,3]
[380450682,1755777039264,-480.0,0.00021917,3]
[380450684,1755777039273,-480.0,0.00021917,3]
[380450686,1755777039282,-900.5,0.00021917,3]
[380450688,1755777039291,-482.44467574,0.00021917,3]
[380450690,1755777039301,-480.0,0.00021917,3]
[380450692,1755777039310,-480.0,0.00021917,3]
[380450694,1755777039319,-501.74407467,0.00021917,3]
[380450696,1755777039329,-480.0,0.00021917,3]
[380450698,1755777039339,-364.23951474,0.00021917,3]
[380450700,1755777039348,-480.0,0.00021917,3]
[380450702,1755777039357,-839.06,0.00021917,3]
[380450704,1755777039366,-480.0,0.00021917,3]
[380450705,1755777039376,-490.55,0.00021917,3]
[380450707,1755777039386,-480.0,0.00021917,3]
[380450709,1755777039395,-480.0,0.00021917,3]
[380450711,1755777039404,-480.0,0.00021917,3]
[380450713,1755777039414,-480.0,0.00021917,3]
[380450715,1755777039423,-480.0,0.00021917,3]
[380450717,1755777039434,-480.0,0.00021917,3]
[380450719,1755777039443,-480.0,0.00021917,3]
[380450721,1755777039455,-480.0,0.00021917,3]
[380450723,1755777039466,-688.87,0.00021917,3]
[380450725,1755777039478,-480.0,0.00021917,3]
[380450727,1755777039488,-480.0,0.00021917,3]
[380450729,1755777039498,-480.0,0.00021917,3]
[380450731,1755777039507,-480.0,0.00021917,3]
[380450733,1755777039516,-360.93471654,0.00021917,3]
[380450735,1755777039533,-119.06528346,0.00021917,3]
[380450737,1755777039550,-480.0,0.00021917,3]
[380450739,1755777039559,-480.0,0.00021917,3]
[380450741,1755777039568,-295.74909663,0.00021917,3]
[380450743,1755777039579,-184.25090337,0.00021917,3]
[380450745,1755777039588,-480.0,0.00021917,3]
[380450747,1755777039597,-480.0,0.00021917,3]
[380450749,1755777039607,-1261.03,0.00021917,3]
[380450751,1755777039616,-480.0,0.00021917,3]
[380450753,1755777039627,-1441.76,0.00021917,3]
[380450755,1755777039637,-231.26435825,0.00021917,3]
[380450757,1755777039647,-480.0,0.00021917,3]
[380450759,1755777039656,-480.0,0.00021917,3]
[380450761,1755777039665,-480.0,0.00021917,3]
[380450763,1755777039675,-531.37,0.00021917,3]
[380450765,1755777039684,-480.0,0.00021917,3]
[380450767,1755777039693,-480.0,0.00021917,3]
[380450769,1755777039702,-460.0,0.00021917,3]
[380450771,1755777039712,-460.0,0.00021917,3]
[380450773,1755777039721,-480.0,0.00021917,3]
[380450775,1755777039731,-480.0,0.00021917,3]
[380450777,1755777039740,-480.0,0.00021917,3]
[380450779,1755777039750,-480.0,0.00021917,3]
[380450781,1755777039759,-480.0,0.00021917,3]
[380450783,1755777039768,-480.08057849,0.00021917,3]
[380450785,1755777039778,-480.0,0.00021917,3]
[380450787,1755777039788,-151.0,0.00021917,2]
[380450788,1755777039797,-151.0,0.00021917,2]
[380450790,1755777039807,-331.7549941,0.00021917,2]
[380450792,1755777039817,-460.0,0.00021917,3]
[380450794,1755777039826,-480.0,0.00021917,3]
[380450797,1755777039838,-156.70144579,0.00021917,3]
[380450799,1755777039851,-406.21855421,0.00021917,3]
[380450801,1755777039860,-480.0,0.00021917,3]
[380450803,1755777039870,-233.4358072,0.00021917,3]
[380450805,1755777039880,-480.0,0.00021917,3]
[380450807,1755777039889,-901.37,0.00021917,3]
[380450809,1755777039899,-482.99639062,0.00021917,3]
[380450811,1755777039908,-480.0,0.00021917,3]
[380450813,1755777039917,-480.0,0.00021917,3]
[380450815,1755777039927,-444.90253741,0.00021917,3]
[380450817,1755777039936,-480.0,0.00021917,3]
[380450820,1755777039947,-480.0,0.00021917,3]
[380450822,1755777039956,-460.0,0.00021917,3]
[380450824,1755777039965,-480.0,0.00021917,3]
[380450826,1755777039974,-480.0,0.00021917,3]
[380450828,1755777039984,-480.0,0.00021917,3]
[380450830,1755777039999,-98.19671056,0.00021917,3]
[380450832,1755777040020,-381.80328944,0.00021917,3]
[380450835,1755777040030,-480.0,0.00021917,3]
[380450836,1755777040040,-480.0,0.00021917,3]
[380450838,1755777040049,-11.34100796,0.00021917,3]